fUST/lending_fUST_20260211
["ID","MTS","AMOUNT","RATE_DAILY","PERIOD"]
[405000400,1770744447098,-5000.0,0.00038224,2]
[405000401,1770744447118,-20209.02665845,0.0003861,2]
[405000402,1770744447140,-707.0,0.0003863,11]
[405000403,1770744447160,-1000.0,0.00038678,120]
[405000404,1770744447182,-168.0,0.0003868,2]
[405000405,1770744447203,-168.0,0.00038682,2]
[405000406,1770744447223,-1748.16,0.000387,14]
[405000407,1770744447254,-160.27,0.000387,7]
[405000408,1770744447275,-712.0,0.00038714,11]
[405000409,1770744447295,-712.0,0.0003872,11]
[405000410,1770744447315,-159.42065072,0.00038779,2]
[405000411,1770744447335,-282.0,0.00038876,2]
[405000412,1770744447357,-393.16,0.0003889,10]
[405000413,1770744447379,-168.0,0.00038897,2]
[405000414,1770744447399,-50000.0,0.000389,7]
[405000415,1770744447419,-1041.66666667,0.000389,120]
[405000416,1770744447456,-151.0,0.000389,120]
[405000417,1770744447476,-151.612975,0.000389,120]
[405000418,1770744447496,-155.275017,0.000389,120]
[405000419,1770744447516,-151.0,0.000389,10]
[405000420,1770744447536,-151.0,0.000389,120]
[405000421,1770744447556,-151.0,0.000389,120]
[405000422,1770744447577,-168.0,0.00038948,2]
[405000423,1770744447599,-2229.54280581,0.00038949,2]
[405000424,1770744447619,-250.0,0.00038977,2]
[405000425,1770744447639,-250.0,0.00038977,2]
[405000426,1770744447658,-250.0,0.00038977,2]
[405000427,1770744447678,-250.0,0.00038977,2]
[405000428,1770744447698,-357.2168731,0.00038977,2]
[405000429,1770744447720,-500.0,0.00038977,2]
[405000430,1770744447740,-500.0,0.00038977,2]
[405000431,1770744447762,-500.0,0.00038977,2]
[405000432,1770744447782,-500.0,0.00038977,2]
[405000433,1770744447802,-500.0,0.00038977,2]
[405000434,1770744447822,-500.0,0.00038977,2]
[405000435,1770744447842,-500.0,0.00038977,2]
[405000436,1770744447862,-500.0,0.00038977,2]
[405000437,1770744447882,-500.0,0.00038977,2]
[405000438,1770744447902,-250.0,0.00038977,2]
[405000439,1770744447922,-500.0,0.00038977,2]
[405000440,1770744447943,-500.0,0.00038977,2]
[405000441,1770744447963,-151.0,0.00038977,120]
[405000442,1770744447982,-151.0,0.00038977,120]
[405000443,1770744448003,-151.0,0.00038977,120]
[405000444,1770744448023,-151.0,0.00038977,120]
[405000445,1770744448043,-151.0,0.00038977,120]
[405000446,1770744448062,-151.0,0.00038977,120]
[405000447,1770744448082,-151.0,0.00038977,120]
[405000448,1770744448101,-151.0,0.00038977,10]
[405000449,1770744448121,-500.0,0.00038986,5]
[405000450,1770744448142,-459.26,0.0003899,3]
[405000451,1770744448164,-229.63,0.0003899,3]
[405000452,1770744448183,-688.93,0.0003899,3]
[405000453,1770744448206,-893.56,0.0003899,10]
[405000454,1770744448226,-1284.60923076,0.0003899,3]
[405000455,1770744448246,-1264.03602816,0.0003899,3]
[405000456,1770744448267,-150.0,0.00039,120]
[405000457,1770744448286,-1682.89815524,0.00039,2]
[405000458,1770744448305,-663098.19809,0.00039,2]
[405000459,1770744506695,4118.98170118,0.00017,2]
[405000460,1770744515362,216.60705354,0.00016,2]
[405000465,1770744609471,522.00461846,0.00013273,2]
[405000467,1770744617505,500.0,0.00013273,2]
[405000468,1770744617559,760.45283244,0.00013821,2]
[405000469,1770744617582,239.54716756,0.00013821,2]
[405000569,1770744632276,-9331.78663798,0.00033,120]
[405000571,1770744632286,-5571.73056833,0.00035,2]
[405000573,1770744632295,-10010.00858059,0.00036,30]
[405000575,1770744632305,-17031.98750955,0.00037,5]
[405000577,1770744632314,-500.0,0.00037348,7]
[405000579,1770744632323,-500.0,0.00037348,7]
[405000581,1770744632333,-500.0,0.00037348,15]
[405000583,1770744632342,-500.0,0.00037348,15]
[405000585,1770744632352,-500.0,0.00037348,7]
[405000587,1770744632361,-500.0,0.00037348,7]
[405000589,1770744632371,-311.1686809,0.00037348,7]
[405000591,1770744632380,-457.04623222,0.00037348,15]
[405000593,1770744632391,-42.95376778,0.00037348,15]
[405000595,1770744632399,-420.74696868,0.00037348,15]
[405000597,1770744632409,-500.0,0.00037348,7]
[405000599,1770744632418,-500.0,0.00037348,7]
[405000601,1770744632427,-500.0,0.00037348,7]
[405000603,1770744632436,-500.0,0.00037348,7]
[405000604,1770744632444,-616.33843736,0.00037348,15]
[405000606,1770744632454,-500.0,0.00037348,7]
[405000608,1770744632463,-500.0,0.00037348,7]
[405000610,1770744632472,-500.0,0.00037348,7]
[405000612,1770744632481,-500.0,0.00037348,7]
[405000614,1770744632490,-500.0,0.00037348,7]
[405000616,1770744632500,-500.0,0.00037348,7]
[405000618,1770744632509,-22.70192355,0.00037348,7]
[405000792,1770744637745,-477.29807645,0.00037348,7]
[405000794,1770744637754,-500.0,0.00037348,7]
[405000796,1770744637764,-500.0,0.00037348,7]
[405000798,1770744637774,-500.0,0.00037348,7]
[405000800,1770744637783,-500.0,0.00037348,7]
[405000802,1770744637793,-500.0,0.00037348,7]
[405000804,1770744637802,-500.0,0.00037348,7]
[405000806,1770744637811,-500.0,0.00037348,7]
[405000808,1770744637821,-500.0,0.00037348,7]
[405000810,1770744637831,-500.0,0.00037348,7]
[405000813,1770744637840,-500.0,0.00037348,7]
[405000815,1770744637850,-500.0,0.00037348,7]
[405000816,1770744637859,-118.77743966,0.00037348,7]
[405000887,1770744638528,-381.22256034,0.00037348,7]
[405000889,1770744638538,-500.0,0.00037348,7]
[405000891,1770744638550,-500.0,0.00037348,7]
[405000894,1770744638560,-500.0,0.00037348,7]
[405000896,1770744638569,-500.0,0.00037348,7]
[405000898,1770744638579,-500.0,0.00037348,7]
[405000900,1770744638588,-500.0,0.00037348,7]
[405000902,1770744638598,-500.0,0.00037348,7]
[405000903,1770744638607,-162.74378522,0.00037348,7]
[405000905,1770744638616,-267.40892949,0.0003783,2]
[405000907,1770744638625,-1002.95792491,0.00037841,2]
[405000909,1770744638635,-159.42065072,0.00038802,2]
[405000912,1770744638645,-154.404732,0.000389,120]
[405000914,1770744638655,-500.627,0.00038927,7]
[405000916,1770744638665,-1041.66666667,0.00038963,2]
[405000918,1770744638675,-500.0,0.00038986,5]
[405000920,1770744638684,-3000.0,0.00038989,3]
[405000922,1770744638693,-3000.0,0.00038989,3]
[405000923,1770744638703,-3000.0,0.00038989,3]
[405000926,1770744638713,-3000.0,0.00038989,3]
[405000927,1770744638722,-3000.0,0.00038989,3]
[405000929,1770744638732,-3000.0,0.00038989,3]
[405000931,1770744638741,-3000.0,0.00038989,3]
[405000933,1770744638751,-3000.0,0.00038989,3]
[405000935,1770744638761,-3000.0,0.00038989,3]
[405000938,1770744638771,-3000.0,0.00038989,3]
[405000939,1770744638781,-3000.0,0.00038989,3]
[405000941,1770744638791,-3000.0,0.00038989,3]
[405000944,1770744638802,-3000.0,0.00038989,3]
[405000946,1770744638812,-500.50779957,0.00038989,3]
[405000948,1770744638823,-485.35,0.0003899,10]
[405000950,1770744638832,-37386.925174,0.00039,2]
[405001042,1770744639981,-742.18218896,0.00038925,2]
[405001044,1770744639992,-119780.17826359,0.00039,2]
[405001046,1770744640003,-8195.0,0.00039,20]
[405001048,1770744640014,-17429.53286627,0.00039,120]
[405001050,1770744640024,-11330.0,0.00039,120]
[405001052,1770744640035,-1352.26329118,0.00039,14]
[405001483,1770744644308,-5554.52670882,0.00039,14]
[405001485,1770744644318,-163.19428,0.00039,30]
[405001487,1770744644327,-151.0,0.00039,120]
[405001489,1770744644336,-153.168544,0.00039,120]
[405001491,1770744644346,-245.376419,0.00039,120]
[405001493,1770744644355,-151.0,0.00039,120]
[405001495,1770744644365,-151.0,0.00039,120]
[405001497,1770744644375,-151.0,0.00039,120]
[405001499,1770744644384,-151.0,0.00039,120]
[405001501,1770744644393,-151.0,0.00039,120]
[405001503,1770744644402,-151.0,0.00039,120]
[405001505,1770744644412,-151.0,0.00039,120]
[405001507,1770744644421,-151.0,0.00039,120]
[405001509,1770744644429,-151.0,0.00039,10]
[405001511,1770744644439,-280.753204,0.00039,10]
[405001513,1770744644448,-151.0,0.00039,120]
[405001515,1770744644456,-151.0,0.00039,120]
[405001516,1770744644466,-151.0,0.00039,120]
[405001519,1770744644475,-151.0,0.00039,120]
[405001520,1770744644485,-500.0,0.00039,2]
[405001522,1770744644494,-161.257396,0.00039,120]
[405001524,1770744644503,-151.0,0.00039,120]
[405001526,1770744644512,-151.0,0.00039,120]
[405001528,1770744644521,-151.0,0.00039,120]
[405001530,1770744644530,-151.0,0.00039,120]
[405001532,1770744644540,-151.0,0.00039,120]
[405001534,1770744644550,-151.0,0.00039,120]
[405001536,1770744644559,-151.0,0.00039,60]
[405001538,1770744644568,-151.0,0.00039,60]
[405001540,1770744644577,-151.0,0.00039,60]
[405001542,1770744644587,-151.0,0.00039,60]
[405001544,1770744644596,-151.0,0.00039,60]
[405001546,1770744644607,-151.0,0.00039,60]
[405001548,1770744644616,-151.0,0.00039,120]
[405001550,1770744644626,-151.0,0.00039,60]
[405001552,1770744644636,-151.0,0.00039,60]
[405001554,1770744644645,-151.0,0.00039,120]
[405001556,1770744644654,-151.0,0.00039,120]
[405001558,1770744644664,-151.0,0.00039,120]
[405001560,1770744644673,-151.0,0.00039,120]
[405001562,1770744644682,-151.0,0.00039,120]
[405001564,1770744644692,-151.0,0.00039,120]
[405001566,1770744644702,-259.020412,0.00039,120]
[405001568,1770744644712,-151.0,0.00039,17]
[405001570,1770744644721,-151.0,0.00039,120]
[405001572,1770744644730,-487.0,0.00039,2]
[405001574,1770744644739,-487.0,0.00039,2]
[405001576,1770744644748,-487.0,0.00039,2]
[405001578,1770744644758,-487.0,0.00039,2]
[405001580,1770744644767,-487.0,0.00039,2]
[405001582,1770744644775,-487.0,0.00039,2]
[405001584,1770744644784,-487.0,0.00039,2]
[405001586,1770744644793,-487.0,0.00039,2]
[405001588,1770744644802,-487.0,0.00039,2]
[405001590,1770744644811,-487.0,0.00039,2]
[405001592,1770744644821,-487.0,0.00039,2]
[405001594,1770744644830,-487.0,0.00039,2]
[405001595,1770744644840,-530.64,0.00039,2]
[405001597,1770744644849,-712.0,0.0003903,11]
[405001599,1770744644859,-720.0,0.00039089,30]
[405001601,1770744644869,-1118.0,0.00039089,30]
[405001603,1770744644878,-168.0,0.00039145,2]
[405001605,1770744644888,-168.0,0.00039237,2]
[405001607,1770744644897,-523.1539028,0.0003926,5]
[405001609,1770744644908,-160.0,0.00039271,3]
[405001611,1770744644918,-401.0,0.00039354,11]
[405001613,1770744644928,-1000.0,0.000394,15]
[405001615,1770744644937,-168.0,0.00039405,7]
[405001617,1770744644947,-573.812346,0.00039422,2]
[405001619,1770744644956,-257.211957,0.000395,120]
[405001621,1770744644965,-2504.48089227,0.00039501,2]
[405001623,1770744644974,-405.0,0.0003951,11]
[405001625,1770744644984,-9234.90070629,0.0003959,2]
[405001627,1770744644994,-151.0,0.0003959,120]
[405001629,1770744645004,-151.0,0.0003959,120]
[405001631,1770744645013,-151.0,0.0003959,120]
[405001633,1770744645022,-167.532368,0.0003959,120]
[405001635,1770744645033,-151.0,0.0003959,120]
[405001637,1770744645042,-151.0,0.0003959,60]
[405001639,1770744645052,-151.0,0.0003959,60]
[405001649,1770744645089,-151.83374,0.0003959,60]
[405001651,1770744645146,-151.0,0.0003959,60]
[405001652,1770744645156,-151.0,0.0003959,120]
[405001654,1770744645165,-721.0,0.00039598,11]
[405001656,1770744645176,-1229.00938208,0.000396,2]
[405001657,1770744645186,-600.0,0.00039677,60]
[405001658,1770744645196,-1000.0,0.000397,15]
[405001660,1770744645205,-311.0,0.00039831,2]
[405001662,1770744645215,-200.0,0.00039884,2]
[405001664,1770744645225,-168.6,0.000399,7]
[405001666,1770744645235,-47263.0282346,0.000399,30]
[405001668,1770744645245,-1041.66666667,0.000399,30]
[405001670,1770744645256,-151.0,0.000399,120]
[405001672,1770744645265,-151.0,0.000399,120]
[405001673,1770744645275,-151.0,0.000399,120]
[405001674,1770744645284,-151.0,0.000399,120]
[405001675,1770744645293,-151.0,0.000399,60]
[405001676,1770744645303,-151.0,0.000399,60]
[405001677,1770744645313,-151.0,0.000399,60]
[405001678,1770744645323,-5350.33795329,0.000399,2]
[405001679,1770744645333,-2000.0,0.00039906,21]
[405001680,1770744645342,-708.0,0.00039918,11]
[405001681,1770744645352,-38000.0,0.00039989,15]
[405001682,1770744645361,-38000.0,0.00039989,15]
[405001684,1770744645371,-151.0,0.00039989,120]
[405001686,1770744645380,-151.0,0.00039989,60]
[405001688,1770744645391,-151.0,0.00039989,60]
[405001690,1770744645406,-259.8475,0.00039989,60]
[405001692,1770744645416,-10634.05158718,0.00039989,15]
[405001694,1770744645547,-1738.99624944,0.00039989,15]
[405001696,1770744645593,-9000.0,0.00039989,15]
[405001697,1770744645604,-297.671768,0.00039989,15]
[405001731,1770744645965,-360.0,0.0003959,30]
[405001734,1770744645980,-1025.0,0.0003959,30]
[405001737,1770744645993,-3565.68132254,0.00039989,15]
[405001739,1770744646009,-153.171553,0.00039989,120]
[405001742,1770744646024,-151.0,0.00039989,120]
[405001744,1770744646037,-151.0,0.00039989,120]
[405001746,1770744646051,-151.0,0.00039989,120]
[405001748,1770744646064,-151.0,0.00039989,120]
[405001749,1770744646077,-316.00900713,0.0003999,3]
[405001750,1770744646091,-522.45,0.0003999,3]
[405001751,1770744646103,-261.22,0.0003999,3]
[405001752,1770744646113,-783.71,0.0003999,3]
[405001753,1770744646125,-250.0,0.00039998,30]
[405001755,1770744646137,-500.0,0.00039998,30]
[405001757,1770744646152,-250.0,0.00039998,30]
[405001760,1770744646165,-250.0,0.00039998,30]
[405001762,1770744646180,-201.93286099,0.00039998,30]
[405001764,1770744646194,-500.0,0.00039998,30]
[405001767,1770744646208,-250.0,0.00039998,30]
[405001769,1770744646223,-250.0,0.00039998,30]
[405001771,1770744646233,-250.0,0.00039998,30]
[405001773,1770744646245,-250.0,0.00039999,30]
[405001776,1770744646257,-500.0,0.00039999,30]
[405001778,1770744646271,-250.0,0.00039999,30]
[405001781,1770744646285,-250.0,0.00039999,30]
[405001783,1770744646296,-3000.0,0.00039999,30]
[405001785,1770744646308,-194.72792766,0.00039999,30]
[405001787,1770744646320,-500.0,0.00039999,30]
[405001789,1770744646332,-250.0,0.00039999,30]
[405001792,1770744646343,-250.0,0.00039999,30]
[405001794,1770744646354,-250.0,0.00039999,30]
[405001796,1770744646367,-250.0,0.00039999,30]
[405001799,1770744646381,-129416.14434579,0.0004,120]
[405001801,1770744646396,-19662.02822,0.0004,120]
[405001804,1770744646410,-9962.39208664,0.0004,120]
[405001807,1770744646429,-17871.73369176,0.0004,120]
[405001809,1770744646443,-183784.99321,0.0004,120]
[405003256,1770744699514,500.0,0.00013273,2]
[405003257,1770744699553,405.78685046,0.00013821,2]
[405003262,1770744921881,500.0,0.00013699,2]
[405003263,1770744930811,500.0,0.00013699,2]
[405003264,1770744933127,654.60959392,0.00014247,2]
[405003265,1770744987244,500.0,0.00013699,2]
[405003266,1770744990637,500.60991962,0.00013273,2]
[405003267,1770745025993,500.0,0.00013699,2]
[405003268,1770745026056,1000.0,0.00014247,2]
[405003269,1770745026845,500.00498246,0.00013699,2]
[405003270,1770745027995,500.0,0.00013699,2]
[405003271,1770745029270,300.0,0.00013673,2]
[405003272,1770745030952,301.56130493,0.00013699,2]
[405003273,1770745058501,500.0,0.00013699,2]
[405003281,1770745203907,160.96164727,0.00013699,2]
[405003283,1770745217445,500.0,0.00013699,2]
[405003284,1770745222076,500.0,0.00013699,2]
[405003285,1770745222143,400.32003782,0.00014247,2]
[405003287,1770745279613,500.0,0.00013273,2]
[405003293,1770745584689,151.0,0.00013273,2]
[405003294,1770745596244,500.0,0.00013699,2]
[405003297,1770745802457,1996.24471952,0.00025583,2]
[405003298,1770745802483,1584.51948197,0.00025583,2]
[405003340,1770745831927,-1097.25,0.00025583,2]
[405003418,1770745838363,-2819.48560191,0.00025583,2]
[405003420,1770745838373,-332.07551782,0.00034202,2]
[405003422,1770745838383,-5000.0,0.00034547,2]
[405003424,1770745838394,-14844.99960692,0.00035885,2]
[405003426,1770745838404,-200.0,0.00037637,2]
[405003428,1770745838414,-168.0,0.00037817,2]
[405003430,1770745838425,-164.761643,0.00037833,2]
[405003432,1770745838435,-168.0,0.00038423,2]
[405003434,1770745838445,-150.0,0.000386,10]
[405003436,1770745838455,-286.0,0.000389,2]
[405003438,1770745838464,-339.83597213,0.00038977,2]
[405003440,1770745838476,-331.00984029,0.00038977,2]
[405003442,1770745838486,-168.0,0.00038992,2]
[405003444,1770745838496,-2000.0,0.00038999,120]
[405003456,1770745838603,-349.0,0.00039,14]
[405003458,1770745838613,-349.0,0.00039,14]
[405003460,1770745838623,-349.0,0.00039,14]
[405003462,1770745838633,-349.0,0.00039,14]
[405003464,1770745838642,-349.0,0.00039,14]
[405003465,1770745838653,-160.26,0.00039,7]
[405003468,1770745838662,-1028.0,0.00039134,30]
[405003470,1770745838673,-450.0,0.00039134,30]
[405003472,1770745838682,-159.42065072,0.00039281,2]
[405003474,1770745838691,-161.0,0.00039296,11]
[405003475,1770745838701,-1041.66666667,0.00039332,2]
[405003477,1770745838710,-742.18218896,0.00039365,2]
[405003479,1770745838721,-153.53972689,0.0003959,10]
[405003481,1770745838731,-4815.30415797,0.000399,2]
[405003483,1770745838741,-490.85,0.0003999,3]
[405003485,1770745838750,-245.42,0.0003999,3]
[405003487,1770745838760,-736.31,0.0003999,3]
[405003489,1770745838770,-807.5785736,0.0003999,3]
[405003492,1770745838779,-500.0,0.00039997,7]
[405003493,1770745838789,-500.0,0.00039997,7]
[405003495,1770745838798,-295.86042058,0.00039997,7]
[405003497,1770745838808,-645.68540899,0.00039997,7]
[405003499,1770745838817,-226.22012062,0.00039998,30]
[405003501,1770745838827,-250.0,0.00039998,30]
[405003503,1770745838837,-250.0,0.00039998,30]
[405003505,1770745838846,-500.0,0.00039998,30]
[405003508,1770745838856,-250.0,0.00039998,30]
[405003510,1770745838866,-250.0,0.00039998,30]
[405003511,1770745838878,-250.0,0.00039998,30]
[405003513,1770745838887,-345.80015409,0.00039998,30]
[405003515,1770745838897,-378.83486372,0.00039998,30]
[405003517,1770745838907,-179.59315971,0.00039999,31]
[405003519,1770745838917,-354.32371861,0.00039999,31]
[405003521,1770745838928,-193.38520662,0.00039999,31]
[405003523,1770745838938,-250.0,0.00039999,30]
[405003525,1770745838948,-250.0,0.00039999,30]
[405003527,1770745838958,-500.0,0.00039999,30]
[405003529,1770745838968,-250.0,0.00039999,30]
[405003531,1770745838978,-250.0,0.00039999,30]
[405003533,1770745838987,-250.0,0.00039999,30]
[405003535,1770745838997,-161.87194584,0.00039999,30]
[405003537,1770745839007,-500.0,0.00039999,30]
[405003539,1770745839017,-250.0,0.00039999,30]
[405003541,1770745839027,-2888.34368979,0.0004,120]
[405003658,1770745840145,-698.91,0.00039997,30]
[405004056,1770745844298,-160.48051803,0.00039997,30]
[405004244,1770745846080,-1317.12225572,0.0004,120]
[405004251,1770745846134,-1966.32121399,0.0004,120]
[405004253,1770745846145,-65239.91060166,0.0004,120]
[405004255,1770745846159,-5161.63353578,0.0004,120]
[405012884,1770746004739,120798.37056363,0.0003,120]
[405012906,1770746222729,300.0,0.000237,2]
[405012914,1770746539128,-1357.88340998,0.00024456,2]
[405012915,1770746557260,-265.99305771,0.00024456,2]
[405012925,1770746776095,165.9474586,0.00013699,2]
[405012932,1770746964139,-5000.0,0.00024211,2]
[405012933,1770746964159,-500.0,0.00024703,2]
[405012934,1770746964180,-3771.9695986,0.00024823,2]
[405012935,1770746964199,-300.0,0.00026573,2]
[405012936,1770746964220,-1200.0,0.00026574,2]
[405012937,1770746964240,-300.0,0.00028741,2]
[405012958,1770747032201,-1404.17076944,0.00035725,2]
[405013128,1770747038241,-3595.82923056,0.00035725,2]
[405013129,1770747038252,-1620.09276944,0.00036086,2]
[405013135,1770747038296,-355.59165585,0.00036086,2]
[405013333,1770747040500,-1364.50019031,0.00036086,2]
[405013336,1770747040512,-7706.9489156,0.0003694,2]
[405013338,1770747040522,-742.18218896,0.00037633,2]
[405013340,1770747040532,-401.0,0.00038396,11]
[405013342,1770747040541,-478.176955,0.00038652,2]
[405013344,1770747040551,-715.0,0.00038718,11]
[405013345,1770747040562,-221.76393117,0.00038823,2]
[405013348,1770747040572,-298.0,0.00038956,30]
[405013350,1770747040581,-957.0,0.00038956,30]
[405013352,1770747040591,-159.42065072,0.00039281,2]
[405013354,1770747040601,-500.0,0.00039899,31]
[405013355,1770747040610,-500.0,0.00039899,31]
[405013357,1770747040620,-500.0,0.00039899,7]
[405013359,1770747040642,-500.0,0.00039899,31]
[405013361,1770747040664,-198.18716824,0.00039899,31]
[405013365,1770747040705,-3e-08,0.00039899,31]
[405013874,1770747046009,-301.81283173,0.00039899,31]
[405013876,1770747046019,-500.0,0.00039899,7]
[405013878,1770747046028,-636.4679645,0.00039899,7]
[405013880,1770747046037,-500.0,0.00039899,7]
[405013882,1770747046046,-500.0,0.00039899,7]
[405013884,1770747046055,-500.0,0.00039899,7]
[405013886,1770747046066,-500.0,0.00039899,7]
[405013888,1770747046075,-500.0,0.00039899,7]
[405013890,1770747046085,-500.0,0.00039899,7]
[405013892,1770747046094,-500.0,0.00039899,7]
[405013894,1770747046103,-500.0,0.00039899,7]
[405013896,1770747046112,-877.0,0.00039899,30]
[405013898,1770747046121,-889.5,0.00039899,30]
[405013900,1770747046130,-629.21580415,0.000399,2]
[405013909,1770747046219,-501.0,0.000399,2]
[405015066,1770747058079,1963.96278285,0.00024953,2]
[405015069,1770747058100,1524.31880944,0.00024953,2]
[405018664,1770747689912,500.0,0.00013699,2]
[405018665,1770747689960,282.4574509,0.00014247,2]
[405018678,1770748041119,-5000.0,0.00024029,2]
[405018679,1770748041142,-4846.66626846,0.00024636,2]
[405018680,1770748041164,-150.0,0.00024641,2]
[405018681,1770748041184,-300.0,0.00025204,2]
[405018682,1770748041207,-177.0,0.00026641,2]
[405018683,1770748041231,-240.0,0.00027299,2]
[405018684,1770748041252,-204.0,0.00028641,2]
[405018685,1770748041274,-231.0,0.00030641,2]
[405018686,1770748041297,-300.0,0.0003241,3]
[405018687,1770748041319,-300.0,0.0003241,3]
[405018688,1770748041339,-279.62503033,0.00032411,14]
[405018689,1770748041359,-10644.44543484,0.00033132,2]
[405018690,1770748041481,-488.720755,0.00033132,2]
[405018691,1770748041503,-742.18218896,0.00037759,2]
[405018692,1770748041524,-1927.703695,0.00037868,2]
[405018693,1770748041544,-1505.4266288,0.00037868,2]
[405018694,1770748041564,-880.0,0.0003913,30]
[405018695,1770748041583,-159.42065072,0.00039274,2]
[405018696,1770748041604,-1759.69125589,0.00039295,2]
[405018697,1770748041623,-542.69351505,0.00039394,2]
[405018698,1770748041645,-500.0,0.00039395,7]
[405018699,1770748041664,-500.0,0.00039395,15]
[405018700,1770748041684,-500.0,0.00039395,15]
[405018701,1770748041705,-520.55829055,0.00039395,15]
[405018702,1770748041727,-216.85945079,0.00039395,15]
[405018703,1770748041748,-500.0,0.00039395,15]
[405018704,1770748041774,-500.0,0.00039395,15]
[405018705,1770748041797,-500.0,0.00039395,7]
[405018706,1770748041818,-500.0,0.00039395,15]
[405018707,1770748041840,-500.0,0.00039395,7]
[405018708,1770748041861,-560.55213672,0.00039395,15]
[405018709,1770748041883,-500.0,0.00039395,15]
[405018710,1770748041905,-500.0,0.00039395,7]
[405018711,1770748041926,-500.0,0.00039395,7]
[405018712,1770748041946,-500.0,0.00039395,15]
[405018713,1770748041966,-500.0,0.00039395,15]
[405018714,1770748041988,-500.0,0.00039395,15]
[405018715,1770748042010,-500.0,0.00039395,7]
[405018716,1770748042032,-500.0,0.00039395,7]
[405018717,1770748042054,-500.0,0.00039395,15]
[405018718,1770748042076,-500.0,0.00039395,7]
[405018719,1770748042097,-500.0,0.00039395,7]
[405018720,1770748042117,-500.0,0.00039395,15]
[405018721,1770748042137,-500.0,0.00039395,15]
[405018722,1770748042157,-500.0,0.00039395,15]
[405018723,1770748042178,-500.0,0.00039395,7]
[405018724,1770748042199,-500.0,0.00039395,7]
[405018725,1770748042220,-276.98427481,0.00039395,15]
[405018726,1770748042243,-500.0,0.00039395,15]
[405018727,1770748042267,-500.0,0.00039395,7]
[405018728,1770748042289,-500.0,0.00039395,7]
[405018729,1770748042314,-500.0,0.00039395,15]
[405018730,1770748042335,-500.0,0.00039395,7]
[405018731,1770748042357,-500.0,0.00039395,7]
[405018732,1770748042378,-500.0,0.00039395,15]
[405018733,1770748042399,-500.0,0.00039395,15]
[405018734,1770748042419,-500.0,0.00039395,7]
[405018735,1770748042440,-541.66913838,0.00039395,15]
[405018736,1770748042462,-360.36256211,0.00039395,7]
[405018737,1770748042483,-500.0,0.00039395,15]
[405018738,1770748042504,-500.0,0.00039395,7]
[405018739,1770748042527,-500.0,0.00039395,15]
[405018740,1770748042551,-500.0,0.00039395,7]
[405018741,1770748042574,-500.0,0.00039395,7]
[405018742,1770748042597,-500.0,0.00039395,15]
[405018743,1770748042617,-500.0,0.00039395,7]
[405018744,1770748042637,-500.0,0.00039395,15]
[405018745,1770748042659,-500.0,0.00039395,15]
[405018746,1770748042679,-397.87912661,0.00039395,15]
[405018747,1770748042700,-500.0,0.00039395,7]
[405018748,1770748042723,-500.0,0.00039395,7]